{"text_format":"3","workbook":"xlsx","n_sheets":4,"sheets":["Biudžeto suvest. nuo metų prad.","Mėnesio išlaidų suvestinė","Išlaidos pagal prekes","Labdaros ir paramos išlaidos"],"not_rendered":{"defined_names":8,"comments":2},"read":"whole","date_system":"1900"}

{"sheet":"Biudžeto suvest. nuo metų prad.","index":0,"n_rows":30,"n_cols":6,"rows_kept":30,"merged":[[1,0,1,5]]}
[]
["Tikrojo 2005 metų biudžeto palyginimas su planuojamu"]
[]
["Didžiosios \nknygos kodas","Sąskaitos pavadinimas","Tikrasis","Biudžetas","Liko Lt","Liko %"]
[]
[1000,"Reklama",{"$f":"'Mėnesio išlaidų suvestinė'!O6","v":{"v":75075,"d":"75,075.00 Lt"}},{"v":100000,"d":"100,000.00 Lt"},{"$f":"SUM(+D6-C6)","v":{"v":24925,"d":"24,925.00 Lt"}},{"$f":"SUM(E6/D6)","v":{"v":0.24925,"d":"24.93%"}}]
[]
[2000,"Biuro įranga",{"$f":"'Mėnesio išlaidų suvestinė'!O8","v":{"v":0,"d":"0.00 Lt"}},{"v":100000,"d":"100,000.00 Lt"},{"$f":"SUM(+D8-C8)","v":{"v":100000,"d":"100,000.00 Lt"}},{"$f":"SUM(E8/D8)","v":{"v":1,"d":"100.00%"}}]
[]
[3000,"Spausdintuvai",{"$f":"'Mėnesio išlaidų suvestinė'!O10","v":{"v":0,"d":"0.00 Lt"}},{"v":100000,"d":"100,000.00 Lt"},{"$f":"SUM(+D10-C10)","v":{"v":100000,"d":"100,000.00 Lt"}},{"$f":"SUM(E10/D10)","v":{"v":1,"d":"100.00%"}}]
[]
[4000,"Išlaidos serveriams",{"$f":"'Mėnesio išlaidų suvestinė'!O12","v":{"v":0,"d":"0.00 Lt"}},{"v":100000,"d":"100,000.00 Lt"},{"$f":"SUM(+D12-C12)","v":{"v":100000,"d":"100,000.00 Lt"}},{"$f":"SUM(E12/D12)","v":{"v":1,"d":"100.00%"}}]
[]
[5000,"Medžiagos",{"$f":"'Mėnesio išlaidų suvestinė'!O14","v":{"v":0,"d":"0.00 Lt"}},{"v":50000,"d":"50,000.00 Lt"},{"$f":"SUM(+D14-C14)","v":{"v":50000,"d":"50,000.00 Lt"}},{"$f":"SUM(E14/D14)","v":{"v":1,"d":"100.00%"}}]
[]
[6000,"Klientų išlaidos",{"$f":"'Mėnesio išlaidų suvestinė'!O16","v":{"v":0,"d":"0.00 Lt"}},{"v":25000,"d":"25,000.00 Lt"},{"$f":"SUM(+D16-C16)","v":{"v":25000,"d":"25,000.00 Lt"}},{"$f":"SUM(E16/D16)","v":{"v":1,"d":"100.00%"}}]
[]
[7000,"Kompiuteriai",{"$f":"'Mėnesio išlaidų suvestinė'!O18","v":{"v":2500,"d":"2,500.00 Lt"}},{"v":75000,"d":"75,000.00 Lt"},{"$f":"SUM(+D18-C18)","v":{"v":72500,"d":"72,500.00 Lt"}},{"$f":"SUM(E18/D18)","v":{"v":0.9666666666666667,"d":"96.67%"}}]
[]
[8000,"Medicinos planas",{"$f":"'Mėnesio išlaidų suvestinė'!O20","v":{"v":0,"d":"0.00 Lt"}},{"v":65000,"d":"65,000.00 Lt"},{"$f":"SUM(+D20-C20)","v":{"v":65000,"d":"65,000.00 Lt"}},{"$f":"SUM(E20/D20)","v":{"v":1,"d":"100.00%"}}]
[]
[9000,"Statybų išlaidos",{"$f":"'Mėnesio išlaidų suvestinė'!O22","v":{"v":0,"d":"0.00 Lt"}},{"v":125000,"d":"125,000.00 Lt"},{"$f":"SUM(+D22-C22)","v":{"v":125000,"d":"125,000.00 Lt"}},{"$f":"SUM(E22/D22)","v":{"v":1,"d":"100.00%"}}]
[]
[10000,"Prekyba",{"$f":"'Mėnesio išlaidų suvestinė'!O24","v":{"v":0,"d":"0.00 Lt"}},{"v":100000,"d":"100,000.00 Lt"},{"$f":"SUM(+D24-C24)","v":{"v":100000,"d":"100,000.00 Lt"}},{"$f":"SUM(E24/D24)","v":{"v":1,"d":"100.00%"}}]
[]
[11000,"Labdaros išlaidos",{"$f":"'Mėnesio išlaidų suvestinė'!O26","v":{"v":2500,"d":"2,500.00 Lt"}},{"v":250000,"d":"250,000.00 Lt"},{"$f":"SUM(+D26-C26)","v":{"v":247500,"d":"247,500.00 Lt"}},{"$f":"SUM(E26/D26)","v":{"v":0.99,"d":"99.00%"}}]
[]
[12000,"Rėmimo išlaidos",{"$f":"'Mėnesio išlaidų suvestinė'!O28","v":{"v":1000,"d":"1,000.00 Lt"}},{"v":50000,"d":"50,000.00 Lt"},{"$f":"SUM(+D28-C28)","v":{"v":49000,"d":"49,000.00 Lt"}},{"$f":"SUM(E28/D28)","v":{"v":0.98,"d":"98.00%"}}]
[]
[null,"IŠ VISO",{"$f":"SUM(C6:C28)","v":{"v":81075,"d":"81,075.00 Lt"}},{"$f":"SUM(D6:D28)","v":{"v":1140000,"d":"1,140,000.00 Lt"}},{"$f":"SUM(E6:E28)","v":{"v":1058925,"d":"1,058,925.00 Lt"}},{"$f":"SUM(E30/D30)","v":{"v":0.9288815789473684,"d":"92.89%"}}]

{"sheet":"Mėnesio išlaidų suvestinė","index":1,"n_rows":30,"n_cols":15,"rows_kept":30,"merged":[[1,0,1,14]]}
[]
["2005 m. mėnesių išlaidos"]
[]
["Didžiosios \nknygos kodas","Sąskaitos pavadinimas","2005-01-01","2005-02-01","2005-03-01","2005-04-01","2005-05-01","2005-06-01","2005-07-01","2005-08-01","2005-09-01","2005-10-01","2005-11-01","2005-12-01",2005]
[]
[1000,"Reklama",{"$f":"SUMIF('Labdaros ir paramos išlaidos'!$L:$L,\"=\"&($A6&TEXT(C$4,\"yy-mmm\")),'Labdaros ir paramos išlaidos'!$D:$D)+SUMIF('Išlaidos pagal prekes'!$J:$J,\"=\"&($A6&TEXT(C$4,\"yy-mmm\")),'Išlaidos pagal prekes'!$E:$E)","v":{"v":75075,"d":"75,075.00 Lt"}},{"$f":"SUMIF('Labdaros ir paramos išlaidos'!$L:$L,\"=\"&($A6&TEXT(D$4,\"yy-mmm\")),'Labdaros ir paramos išlaidos'!$D:$D)+SUMIF('Išlaidos pagal prekes'!$J:$J,\"=\"&($A6&TEXT(D$4,\"yy-mmm\")),'Išlaidos pagal prekes'!$E:$E)","v":{"v":0,"d":"0.00 Lt"}},{"$f":"SUMIF('Labdaros ir paramos išlaidos'!$L:$L,\"=\"&($A6&TEXT(E$4,\"yy-mmm\")),'Labdaros ir paramos išlaidos'!$D:$D)+SUMIF('Išlaidos pagal prekes'!$J:$J,\"=\"&($A6&TEXT(E$4,\"yy-mmm\")),'Išlaidos pagal prekes'!$E:$E)","v":{"v":0,"d":"0.00 Lt"}},{"$f":"SUMIF('Labdaros ir paramos išlaidos'!$L:$L,\"=\"&($A6&TEXT(F$4,\"yy-mmm\")),'Labdaros ir paramos išlaidos'!$D:$D)+SUMIF('Išlaidos pagal prekes'!$J:$J,\"=\"&($A6&TEXT(F$4,\"yy-mmm\")),'Išlaidos pagal prekes'!$E:$E)","v":{"v":0,"d":"0.00 Lt"}},{"$f":"SUMIF('Labdaros ir paramos išlaidos'!$L:$L,\"=\"&($A6&TEXT(G$4,\"yy-mmm\")),'Labdaros ir paramos išlaidos'!$D:$D)+SUMIF('Išlaidos pagal prekes'!$J:$J,\"=\"&($A6&TEXT(G$4,\"yy-mmm\")),'Išlaidos pagal prekes'!$E:$E)","v":{"v":0,"d":"0.00 Lt"}},{"$f":"SUMIF('Labdaros ir paramos išlaidos'!$L:$L,\"=\"&($A6&TEXT(H$4,\"yy-mmm\")),'Labdaros ir paramos išlaidos'!$D:$D)+SUMIF('Išlaidos pagal prekes'!$J:$J,\"=\"&($A6&TEXT(H$4,\"yy-mmm\")),'Išlaidos pagal prekes'!$E:$E)","v":{"v":0,"d":"0.00 Lt"}},{"$f":"SUMIF('Labdaros ir paramos išlaidos'!$L:$L,\"=\"&($A6&TEXT(I$4,\"yy-mmm\")),'Labdaros ir paramos išlaidos'!$D:$D)+SUMIF('Išlaidos pagal prekes'!$J:$J,\"=\"&($A6&TEXT(I$4,\"yy-mmm\")),'Išlaidos pagal prekes'!$E:$E)","v":{"v":0,"d":"0.00 Lt"}},{"$f":"SUMIF('Labdaros ir paramos išlaidos'!$L:$L,\"=\"&($A6&TEXT(J$4,\"yy-mmm\")),'Labdaros ir paramos išlaidos'!$D:$D)+SUMIF('Išlaidos pagal prekes'!$J:$J,\"=\"&($A6&TEXT(J$4,\"yy-mmm\")),'Išlaidos pagal prekes'!$E:$E)","v":{"v":0,"d":"0.00 Lt"}},{"$f":"SUMIF('Labdaros ir paramos išlaidos'!$L:$L,\"=\"&($A6&TEXT(K$4,\"yy-mmm\")),'Labdaros ir paramos išlaidos'!$D:$D)+SUMIF('Išlaidos pagal prekes'!$J:$J,\"=\"&($A6&TEXT(K$4,\"yy-mmm\")),'Išlaidos pagal prekes'!$E:$E)","v":{"v":0,"d":"0.00 Lt"}},{"$f":"SUMIF('Labdaros ir paramos išlaidos'!$L:$L,\"=\"&($A6&TEXT(L$4,\"yy-mmm\")),'Labdaros ir paramos išlaidos'!$D:$D)+SUMIF('Išlaidos pagal prekes'!$J:$J,\"=\"&($A6&TEXT(L$4,\"yy-mmm\")),'Išlaidos pagal prekes'!$E:$E)","v":{"v":0,"d":"0.00 Lt"}},{"$f":"SUMIF('Labdaros ir paramos išlaidos'!$L:$L,\"=\"&($A6&TEXT(M$4,\"yy-mmm\")),'Labdaros ir paramos išlaidos'!$D:$D)+SUMIF('Išlaidos pagal prekes'!$J:$J,\"=\"&($A6&TEXT(M$4,\"yy-mmm\")),'Išlaidos pagal prekes'!$E:$E)","v":{"v":0,"d":"0.00 Lt"}},{"$f":"SUMIF('Labdaros ir paramos išlaidos'!$L:$L,\"=\"&($A6&TEXT(N$4,\"yy-mmm\")),'Labdaros ir paramos išlaidos'!$D:$D)+SUMIF('Išlaidos pagal prekes'!$J:$J,\"=\"&($A6&TEXT(N$4,\"yy-mmm\")),'Išlaidos pagal prekes'!$E:$E)","v":{"v":0,"d":"0.00 Lt"}},{"$f":"SUM(C6:N6)","v":{"v":75075,"d":"75,075.00 Lt"}}]
[]
[2000,"Biuro įranga",{"$f":"SUMIF('Labdaros ir paramos išlaidos'!$L:$L,\"=\"&($A8&TEXT(C$4,\"yy-mmm\")),'Labdaros ir paramos išlaidos'!$D:$D)+SUMIF('Išlaidos pagal prekes'!$J:$J,\"=\"&($A8&TEXT(C$4,\"yy-mmm\")),'Išlaidos pagal prekes'!$E:$E)","v":{"v":0,"d":"0.00 Lt"}},{"$f":"SUMIF('Labdaros ir paramos išlaidos'!$L:$L,\"=\"&($A8&TEXT(D$4,\"yy-mmm\")),'Labdaros ir paramos išlaidos'!$D:$D)+SUMIF('Išlaidos pagal prekes'!$J:$J,\"=\"&($A8&TEXT(D$4,\"yy-mmm\")),'Išlaidos pagal prekes'!$E:$E)","v":{"v":0,"d":"0.00 Lt"}},{"$f":"SUMIF('Labdaros ir paramos išlaidos'!$L:$L,\"=\"&($A8&TEXT(E$4,\"yy-mmm\")),'Labdaros ir paramos išlaidos'!$D:$D)+SUMIF('Išlaidos pagal prekes'!$J:$J,\"=\"&($A8&TEXT(E$4,\"yy-mmm\")),'Išlaidos pagal prekes'!$E:$E)","v":{"v":0,"d":"0.00 Lt"}},{"$f":"SUMIF('Labdaros ir paramos išlaidos'!$L:$L,\"=\"&($A8&TEXT(F$4,\"yy-mmm\")),'Labdaros ir paramos išlaidos'!$D:$D)+SUMIF('Išlaidos pagal prekes'!$J:$J,\"=\"&($A8&TEXT(F$4,\"yy-mmm\")),'Išlaidos pagal prekes'!$E:$E)","v":{"v":0,"d":"0.00 Lt"}},{"$f":"SUMIF('Labdaros ir paramos išlaidos'!$L:$L,\"=\"&($A8&TEXT(G$4,\"yy-mmm\")),'Labdaros ir paramos išlaidos'!$D:$D)+SUMIF('Išlaidos pagal prekes'!$J:$J,\"=\"&($A8&TEXT(G$4,\"yy-mmm\")),'Išlaidos pagal prekes'!$E:$E)","v":{"v":0,"d":"0.00 Lt"}},{"$f":"SUMIF('Labdaros ir paramos išlaidos'!$L:$L,\"=\"&($A8&TEXT(H$4,\"yy-mmm\")),'Labdaros ir paramos išlaidos'!$D:$D)+SUMIF('Išlaidos pagal prekes'!$J:$J,\"=\"&($A8&TEXT(H$4,\"yy-mmm\")),'Išlaidos pagal prekes'!$E:$E)","v":{"v":0,"d":"0.00 Lt"}},{"$f":"SUMIF('Labdaros ir paramos išlaidos'!$L:$L,\"=\"&($A8&TEXT(I$4,\"yy-mmm\")),'Labdaros ir paramos išlaidos'!$D:$D)+SUMIF('Išlaidos pagal prekes'!$J:$J,\"=\"&($A8&TEXT(I$4,\"yy-mmm\")),'Išlaidos pagal prekes'!$E:$E)","v":{"v":0,"d":"0.00 Lt"}},{"$f":"SUMIF('Labdaros ir paramos išlaidos'!$L:$L,\"=\"&($A8&TEXT(J$4,\"yy-mmm\")),'Labdaros ir paramos išlaidos'!$D:$D)+SUMIF('Išlaidos pagal prekes'!$J:$J,\"=\"&($A8&TEXT(J$4,\"yy-mmm\")),'Išlaidos pagal prekes'!$E:$E)","v":{"v":0,"d":"0.00 Lt"}},{"$f":"SUMIF('Labdaros ir paramos išlaidos'!$L:$L,\"=\"&($A8&TEXT(K$4,\"yy-mmm\")),'Labdaros ir paramos išlaidos'!$D:$D)+SUMIF('Išlaidos pagal prekes'!$J:$J,\"=\"&($A8&TEXT(K$4,\"yy-mmm\")),'Išlaidos pagal prekes'!$E:$E)","v":{"v":0,"d":"0.00 Lt"}},{"$f":"SUMIF('Labdaros ir paramos išlaidos'!$L:$L,\"=\"&($A8&TEXT(L$4,\"yy-mmm\")),'Labdaros ir paramos išlaidos'!$D:$D)+SUMIF('Išlaidos pagal prekes'!$J:$J,\"=\"&($A8&TEXT(L$4,\"yy-mmm\")),'Išlaidos pagal prekes'!$E:$E)","v":{"v":0,"d":"0.00 Lt"}},{"$f":"SUMIF('Labdaros ir paramos išlaidos'!$L:$L,\"=\"&($A8&TEXT(M$4,\"yy-mmm\")),'Labdaros ir paramos išlaidos'!$D:$D)+SUMIF('Išlaidos pagal prekes'!$J:$J,\"=\"&($A8&TEXT(M$4,\"yy-mmm\")),'Išlaidos pagal prekes'!$E:$E)","v":{"v":0,"d":"0.00 Lt"}},{"$f":"SUMIF('Labdaros ir paramos išlaidos'!$L:$L,\"=\"&($A8&TEXT(N$4,\"yy-mmm\")),'Labdaros ir paramos išlaidos'!$D:$D)+SUMIF('Išlaidos pagal prekes'!$J:$J,\"=\"&($A8&TEXT(N$4,\"yy-mmm\")),'Išlaidos pagal prekes'!$E:$E)","v":{"v":0,"d":"0.00 Lt"}},{"$f":"SUM(C8:N8)","v":{"v":0,"d":"0.00 Lt"}}]
[]
[3000,"Spausdintuvai",{"$f":"SUMIF('Labdaros ir paramos išlaidos'!$L:$L,\"=\"&($A10&TEXT(C$4,\"yy-mmm\")),'Labdaros ir paramos išlaidos'!$D:$D)+SUMIF('Išlaidos pagal prekes'!$J:$J,\"=\"&($A10&TEXT(C$4,\"yy-mmm\")),'Išlaidos pagal prekes'!$E:$E)","v":{"v":0,"d":"0.00 Lt"}},{"$f":"SUMIF('Labdaros ir paramos išlaidos'!$L:$L,\"=\"&($A10&TEXT(D$4,\"yy-mmm\")),'Labdaros ir paramos išlaidos'!$D:$D)+SUMIF('Išlaidos pagal prekes'!$J:$J,\"=\"&($A10&TEXT(D$4,\"yy-mmm\")),'Išlaidos pagal prekes'!$E:$E)","v":{"v":0,"d":"0.00 Lt"}},{"$f":"SUMIF('Labdaros ir paramos išlaidos'!$L:$L,\"=\"&($A10&TEXT(E$4,\"yy-mmm\")),'Labdaros ir paramos išlaidos'!$D:$D)+SUMIF('Išlaidos pagal prekes'!$J:$J,\"=\"&($A10&TEXT(E$4,\"yy-mmm\")),'Išlaidos pagal prekes'!$E:$E)","v":{"v":0,"d":"0.00 Lt"}},{"$f":"SUMIF('Labdaros ir paramos išlaidos'!$L:$L,\"=\"&($A10&TEXT(F$4,\"yy-mmm\")),'Labdaros ir paramos išlaidos'!$D:$D)+SUMIF('Išlaidos pagal prekes'!$J:$J,\"=\"&($A10&TEXT(F$4,\"yy-mmm\")),'Išlaidos pagal prekes'!$E:$E)","v":{"v":0,"d":"0.00 Lt"}},{"$f":"SUMIF('Labdaros ir paramos išlaidos'!$L:$L,\"=\"&($A10&TEXT(G$4,\"yy-mmm\")),'Labdaros ir paramos išlaidos'!$D:$D)+SUMIF('Išlaidos pagal prekes'!$J:$J,\"=\"&($A10&TEXT(G$4,\"yy-mmm\")),'Išlaidos pagal prekes'!$E:$E)","v":{"v":0,"d":"0.00 Lt"}},{"$f":"SUMIF('Labdaros ir paramos išlaidos'!$L:$L,\"=\"&($A10&TEXT(H$4,\"yy-mmm\")),'Labdaros ir paramos išlaidos'!$D:$D)+SUMIF('Išlaidos pagal prekes'!$J:$J,\"=\"&($A10&TEXT(H$4,\"yy-mmm\")),'Išlaidos pagal prekes'!$E:$E)","v":{"v":0,"d":"0.00 Lt"}},{"$f":"SUMIF('Labdaros ir paramos išlaidos'!$L:$L,\"=\"&($A10&TEXT(I$4,\"yy-mmm\")),'Labdaros ir paramos išlaidos'!$D:$D)+SUMIF('Išlaidos pagal prekes'!$J:$J,\"=\"&($A10&TEXT(I$4,\"yy-mmm\")),'Išlaidos pagal prekes'!$E:$E)","v":{"v":0,"d":"0.00 Lt"}},{"$f":"SUMIF('Labdaros ir paramos išlaidos'!$L:$L,\"=\"&($A10&TEXT(J$4,\"yy-mmm\")),'Labdaros ir paramos išlaidos'!$D:$D)+SUMIF('Išlaidos pagal prekes'!$J:$J,\"=\"&($A10&TEXT(J$4,\"yy-mmm\")),'Išlaidos pagal prekes'!$E:$E)","v":{"v":0,"d":"0.00 Lt"}},{"$f":"SUMIF('Labdaros ir paramos išlaidos'!$L:$L,\"=\"&($A10&TEXT(K$4,\"yy-mmm\")),'Labdaros ir paramos išlaidos'!$D:$D)+SUMIF('Išlaidos pagal prekes'!$J:$J,\"=\"&($A10&TEXT(K$4,\"yy-mmm\")),'Išlaidos pagal prekes'!$E:$E)","v":{"v":0,"d":"0.00 Lt"}},{"$f":"SUMIF('Labdaros ir paramos išlaidos'!$L:$L,\"=\"&($A10&TEXT(L$4,\"yy-mmm\")),'Labdaros ir paramos išlaidos'!$D:$D)+SUMIF('Išlaidos pagal prekes'!$J:$J,\"=\"&($A10&TEXT(L$4,\"yy-mmm\")),'Išlaidos pagal prekes'!$E:$E)","v":{"v":0,"d":"0.00 Lt"}},{"$f":"SUMIF('Labdaros ir paramos išlaidos'!$L:$L,\"=\"&($A10&TEXT(M$4,\"yy-mmm\")),'Labdaros ir paramos išlaidos'!$D:$D)+SUMIF('Išlaidos pagal prekes'!$J:$J,\"=\"&($A10&TEXT(M$4,\"yy-mmm\")),'Išlaidos pagal prekes'!$E:$E)","v":{"v":0,"d":"0.00 Lt"}},{"$f":"SUMIF('Labdaros ir paramos išlaidos'!$L:$L,\"=\"&($A10&TEXT(N$4,\"yy-mmm\")),'Labdaros ir paramos išlaidos'!$D:$D)+SUMIF('Išlaidos pagal prekes'!$J:$J,\"=\"&($A10&TEXT(N$4,\"yy-mmm\")),'Išlaidos pagal prekes'!$E:$E)","v":{"v":0,"d":"0.00 Lt"}},{"$f":"SUM(C10:N10)","v":{"v":0,"d":"0.00 Lt"}}]
[]
[4000,"Išlaidos serveriams",{"$f":"SUMIF('Labdaros ir paramos išlaidos'!$L:$L,\"=\"&($A12&TEXT(C$4,\"yy-mmm\")),'Labdaros ir paramos išlaidos'!$D:$D)+SUMIF('Išlaidos pagal prekes'!$J:$J,\"=\"&($A12&TEXT(C$4,\"yy-mmm\")),'Išlaidos pagal prekes'!$E:$E)","v":{"v":0,"d":"0.00 Lt"}},{"$f":"SUMIF('Labdaros ir paramos išlaidos'!$L:$L,\"=\"&($A12&TEXT(D$4,\"yy-mmm\")),'Labdaros ir paramos išlaidos'!$D:$D)+SUMIF('Išlaidos pagal prekes'!$J:$J,\"=\"&($A12&TEXT(D$4,\"yy-mmm\")),'Išlaidos pagal prekes'!$E:$E)","v":{"v":0,"d":"0.00 Lt"}},{"$f":"SUMIF('Labdaros ir paramos išlaidos'!$L:$L,\"=\"&($A12&TEXT(E$4,\"yy-mmm\")),'Labdaros ir paramos išlaidos'!$D:$D)+SUMIF('Išlaidos pagal prekes'!$J:$J,\"=\"&($A12&TEXT(E$4,\"yy-mmm\")),'Išlaidos pagal prekes'!$E:$E)","v":{"v":0,"d":"0.00 Lt"}},{"$f":"SUMIF('Labdaros ir paramos išlaidos'!$L:$L,\"=\"&($A12&TEXT(F$4,\"yy-mmm\")),'Labdaros ir paramos išlaidos'!$D:$D)+SUMIF('Išlaidos pagal prekes'!$J:$J,\"=\"&($A12&TEXT(F$4,\"yy-mmm\")),'Išlaidos pagal prekes'!$E:$E)","v":{"v":0,"d":"0.00 Lt"}},{"$f":"SUMIF('Labdaros ir paramos išlaidos'!$L:$L,\"=\"&($A12&TEXT(G$4,\"yy-mmm\")),'Labdaros ir paramos išlaidos'!$D:$D)+SUMIF('Išlaidos pagal prekes'!$J:$J,\"=\"&($A12&TEXT(G$4,\"yy-mmm\")),'Išlaidos pagal prekes'!$E:$E)","v":{"v":0,"d":"0.00 Lt"}},{"$f":"SUMIF('Labdaros ir paramos išlaidos'!$L:$L,\"=\"&($A12&TEXT(H$4,\"yy-mmm\")),'Labdaros ir paramos išlaidos'!$D:$D)+SUMIF('Išlaidos pagal prekes'!$J:$J,\"=\"&($A12&TEXT(H$4,\"yy-mmm\")),'Išlaidos pagal prekes'!$E:$E)","v":{"v":0,"d":"0.00 Lt"}},{"$f":"SUMIF('Labdaros ir paramos išlaidos'!$L:$L,\"=\"&($A12&TEXT(I$4,\"yy-mmm\")),'Labdaros ir paramos išlaidos'!$D:$D)+SUMIF('Išlaidos pagal prekes'!$J:$J,\"=\"&($A12&TEXT(I$4,\"yy-mmm\")),'Išlaidos pagal prekes'!$E:$E)","v":{"v":0,"d":"0.00 Lt"}},{"$f":"SUMIF('Labdaros ir paramos išlaidos'!$L:$L,\"=\"&($A12&TEXT(J$4,\"yy-mmm\")),'Labdaros ir paramos išlaidos'!$D:$D)+SUMIF('Išlaidos pagal prekes'!$J:$J,\"=\"&($A12&TEXT(J$4,\"yy-mmm\")),'Išlaidos pagal prekes'!$E:$E)","v":{"v":0,"d":"0.00 Lt"}},{"$f":"SUMIF('Labdaros ir paramos išlaidos'!$L:$L,\"=\"&($A12&TEXT(K$4,\"yy-mmm\")),'Labdaros ir paramos išlaidos'!$D:$D)+SUMIF('Išlaidos pagal prekes'!$J:$J,\"=\"&($A12&TEXT(K$4,\"yy-mmm\")),'Išlaidos pagal prekes'!$E:$E)","v":{"v":0,"d":"0.00 Lt"}},{"$f":"SUMIF('Labdaros ir paramos išlaidos'!$L:$L,\"=\"&($A12&TEXT(L$4,\"yy-mmm\")),'Labdaros ir paramos išlaidos'!$D:$D)+SUMIF('Išlaidos pagal prekes'!$J:$J,\"=\"&($A12&TEXT(L$4,\"yy-mmm\")),'Išlaidos pagal prekes'!$E:$E)","v":{"v":0,"d":"0.00 Lt"}},{"$f":"SUMIF('Labdaros ir paramos išlaidos'!$L:$L,\"=\"&($A12&TEXT(M$4,\"yy-mmm\")),'Labdaros ir paramos išlaidos'!$D:$D)+SUMIF('Išlaidos pagal prekes'!$J:$J,\"=\"&($A12&TEXT(M$4,\"yy-mmm\")),'Išlaidos pagal prekes'!$E:$E)","v":{"v":0,"d":"0.00 Lt"}},{"$f":"SUMIF('Labdaros ir paramos išlaidos'!$L:$L,\"=\"&($A12&TEXT(N$4,\"yy-mmm\")),'Labdaros ir paramos išlaidos'!$D:$D)+SUMIF('Išlaidos pagal prekes'!$J:$J,\"=\"&($A12&TEXT(N$4,\"yy-mmm\")),'Išlaidos pagal prekes'!$E:$E)","v":{"v":0,"d":"0.00 Lt"}},{"$f":"SUM(C12:N12)","v":{"v":0,"d":"0.00 Lt"}}]
[]
[5000,"Medžiagos",{"$f":"SUMIF('Labdaros ir paramos išlaidos'!$L:$L,\"=\"&($A14&TEXT(C$4,\"yy-mmm\")),'Labdaros ir paramos išlaidos'!$D:$D)+SUMIF('Išlaidos pagal prekes'!$J:$J,\"=\"&($A14&TEXT(C$4,\"yy-mmm\")),'Išlaidos pagal prekes'!$E:$E)","v":{"v":0,"d":"0.00 Lt"}},{"$f":"SUMIF('Labdaros ir paramos išlaidos'!$L:$L,\"=\"&($A14&TEXT(D$4,\"yy-mmm\")),'Labdaros ir paramos išlaidos'!$D:$D)+SUMIF('Išlaidos pagal prekes'!$J:$J,\"=\"&($A14&TEXT(D$4,\"yy-mmm\")),'Išlaidos pagal prekes'!$E:$E)","v":{"v":0,"d":"0.00 Lt"}},{"$f":"SUMIF('Labdaros ir paramos išlaidos'!$L:$L,\"=\"&($A14&TEXT(E$4,\"yy-mmm\")),'Labdaros ir paramos išlaidos'!$D:$D)+SUMIF('Išlaidos pagal prekes'!$J:$J,\"=\"&($A14&TEXT(E$4,\"yy-mmm\")),'Išlaidos pagal prekes'!$E:$E)","v":{"v":0,"d":"0.00 Lt"}},{"$f":"SUMIF('Labdaros ir paramos išlaidos'!$L:$L,\"=\"&($A14&TEXT(F$4,\"yy-mmm\")),'Labdaros ir paramos išlaidos'!$D:$D)+SUMIF('Išlaidos pagal prekes'!$J:$J,\"=\"&($A14&TEXT(F$4,\"yy-mmm\")),'Išlaidos pagal prekes'!$E:$E)","v":{"v":0,"d":"0.00 Lt"}},{"$f":"SUMIF('Labdaros ir paramos išlaidos'!$L:$L,\"=\"&($A14&TEXT(G$4,\"yy-mmm\")),'Labdaros ir paramos išlaidos'!$D:$D)+SUMIF('Išlaidos pagal prekes'!$J:$J,\"=\"&($A14&TEXT(G$4,\"yy-mmm\")),'Išlaidos pagal prekes'!$E:$E)","v":{"v":0,"d":"0.00 Lt"}},{"$f":"SUMIF('Labdaros ir paramos išlaidos'!$L:$L,\"=\"&($A14&TEXT(H$4,\"yy-mmm\")),'Labdaros ir paramos išlaidos'!$D:$D)+SUMIF('Išlaidos pagal prekes'!$J:$J,\"=\"&($A14&TEXT(H$4,\"yy-mmm\")),'Išlaidos pagal prekes'!$E:$E)","v":{"v":0,"d":"0.00 Lt"}},{"$f":"SUMIF('Labdaros ir paramos išlaidos'!$L:$L,\"=\"&($A14&TEXT(I$4,\"yy-mmm\")),'Labdaros ir paramos išlaidos'!$D:$D)+SUMIF('Išlaidos pagal prekes'!$J:$J,\"=\"&($A14&TEXT(I$4,\"yy-mmm\")),'Išlaidos pagal prekes'!$E:$E)","v":{"v":0,"d":"0.00 Lt"}},{"$f":"SUMIF('Labdaros ir paramos išlaidos'!$L:$L,\"=\"&($A14&TEXT(J$4,\"yy-mmm\")),'Labdaros ir paramos išlaidos'!$D:$D)+SUMIF('Išlaidos pagal prekes'!$J:$J,\"=\"&($A14&TEXT(J$4,\"yy-mmm\")),'Išlaidos pagal prekes'!$E:$E)","v":{"v":0,"d":"0.00 Lt"}},{"$f":"SUMIF('Labdaros ir paramos išlaidos'!$L:$L,\"=\"&($A14&TEXT(K$4,\"yy-mmm\")),'Labdaros ir paramos išlaidos'!$D:$D)+SUMIF('Išlaidos pagal prekes'!$J:$J,\"=\"&($A14&TEXT(K$4,\"yy-mmm\")),'Išlaidos pagal prekes'!$E:$E)","v":{"v":0,"d":"0.00 Lt"}},{"$f":"SUMIF('Labdaros ir paramos išlaidos'!$L:$L,\"=\"&($A14&TEXT(L$4,\"yy-mmm\")),'Labdaros ir paramos išlaidos'!$D:$D)+SUMIF('Išlaidos pagal prekes'!$J:$J,\"=\"&($A14&TEXT(L$4,\"yy-mmm\")),'Išlaidos pagal prekes'!$E:$E)","v":{"v":0,"d":"0.00 Lt"}},{"$f":"SUMIF('Labdaros ir paramos išlaidos'!$L:$L,\"=\"&($A14&TEXT(M$4,\"yy-mmm\")),'Labdaros ir paramos išlaidos'!$D:$D)+SUMIF('Išlaidos pagal prekes'!$J:$J,\"=\"&($A14&TEXT(M$4,\"yy-mmm\")),'Išlaidos pagal prekes'!$E:$E)","v":{"v":0,"d":"0.00 Lt"}},{"$f":"SUMIF('Labdaros ir paramos išlaidos'!$L:$L,\"=\"&($A14&TEXT(N$4,\"yy-mmm\")),'Labdaros ir paramos išlaidos'!$D:$D)+SUMIF('Išlaidos pagal prekes'!$J:$J,\"=\"&($A14&TEXT(N$4,\"yy-mmm\")),'Išlaidos pagal prekes'!$E:$E)","v":{"v":0,"d":"0.00 Lt"}},{"$f":"SUM(C14:N14)","v":{"v":0,"d":"0.00 Lt"}}]
[]
[6000,"Klientų išlaidos",{"$f":"SUMIF('Labdaros ir paramos išlaidos'!$L:$L,\"=\"&($A16&TEXT(C$4,\"yy-mmm\")),'Labdaros ir paramos išlaidos'!$D:$D)+SUMIF('Išlaidos pagal prekes'!$J:$J,\"=\"&($A16&TEXT(C$4,\"yy-mmm\")),'Išlaidos pagal prekes'!$E:$E)","v":{"v":0,"d":"0.00 Lt"}},{"$f":"SUMIF('Labdaros ir paramos išlaidos'!$L:$L,\"=\"&($A16&TEXT(D$4,\"yy-mmm\")),'Labdaros ir paramos išlaidos'!$D:$D)+SUMIF('Išlaidos pagal prekes'!$J:$J,\"=\"&($A16&TEXT(D$4,\"yy-mmm\")),'Išlaidos pagal prekes'!$E:$E)","v":{"v":0,"d":"0.00 Lt"}},{"$f":"SUMIF('Labdaros ir paramos išlaidos'!$L:$L,\"=\"&($A16&TEXT(E$4,\"yy-mmm\")),'Labdaros ir paramos išlaidos'!$D:$D)+SUMIF('Išlaidos pagal prekes'!$J:$J,\"=\"&($A16&TEXT(E$4,\"yy-mmm\")),'Išlaidos pagal prekes'!$E:$E)","v":{"v":0,"d":"0.00 Lt"}},{"$f":"SUMIF('Labdaros ir paramos išlaidos'!$L:$L,\"=\"&($A16&TEXT(F$4,\"yy-mmm\")),'Labdaros ir paramos išlaidos'!$D:$D)+SUMIF('Išlaidos pagal prekes'!$J:$J,\"=\"&($A16&TEXT(F$4,\"yy-mmm\")),'Išlaidos pagal prekes'!$E:$E)","v":{"v":0,"d":"0.00 Lt"}},{"$f":"SUMIF('Labdaros ir paramos išlaidos'!$L:$L,\"=\"&($A16&TEXT(G$4,\"yy-mmm\")),'Labdaros ir paramos išlaidos'!$D:$D)+SUMIF('Išlaidos pagal prekes'!$J:$J,\"=\"&($A16&TEXT(G$4,\"yy-mmm\")),'Išlaidos pagal prekes'!$E:$E)","v":{"v":0,"d":"0.00 Lt"}},{"$f":"SUMIF('Labdaros ir paramos išlaidos'!$L:$L,\"=\"&($A16&TEXT(H$4,\"yy-mmm\")),'Labdaros ir paramos išlaidos'!$D:$D)+SUMIF('Išlaidos pagal prekes'!$J:$J,\"=\"&($A16&TEXT(H$4,\"yy-mmm\")),'Išlaidos pagal prekes'!$E:$E)","v":{"v":0,"d":"0.00 Lt"}},{"$f":"SUMIF('Labdaros ir paramos išlaidos'!$L:$L,\"=\"&($A16&TEXT(I$4,\"yy-mmm\")),'Labdaros ir paramos išlaidos'!$D:$D)+SUMIF('Išlaidos pagal prekes'!$J:$J,\"=\"&($A16&TEXT(I$4,\"yy-mmm\")),'Išlaidos pagal prekes'!$E:$E)","v":{"v":0,"d":"0.00 Lt"}},{"$f":"SUMIF('Labdaros ir paramos išlaidos'!$L:$L,\"=\"&($A16&TEXT(J$4,\"yy-mmm\")),'Labdaros ir paramos išlaidos'!$D:$D)+SUMIF('Išlaidos pagal prekes'!$J:$J,\"=\"&($A16&TEXT(J$4,\"yy-mmm\")),'Išlaidos pagal prekes'!$E:$E)","v":{"v":0,"d":"0.00 Lt"}},{"$f":"SUMIF('Labdaros ir paramos išlaidos'!$L:$L,\"=\"&($A16&TEXT(K$4,\"yy-mmm\")),'Labdaros ir paramos išlaidos'!$D:$D)+SUMIF('Išlaidos pagal prekes'!$J:$J,\"=\"&($A16&TEXT(K$4,\"yy-mmm\")),'Išlaidos pagal prekes'!$E:$E)","v":{"v":0,"d":"0.00 Lt"}},{"$f":"SUMIF('Labdaros ir paramos išlaidos'!$L:$L,\"=\"&($A16&TEXT(L$4,\"yy-mmm\")),'Labdaros ir paramos išlaidos'!$D:$D)+SUMIF('Išlaidos pagal prekes'!$J:$J,\"=\"&($A16&TEXT(L$4,\"yy-mmm\")),'Išlaidos pagal prekes'!$E:$E)","v":{"v":0,"d":"0.00 Lt"}},{"$f":"SUMIF('Labdaros ir paramos išlaidos'!$L:$L,\"=\"&($A16&TEXT(M$4,\"yy-mmm\")),'Labdaros ir paramos išlaidos'!$D:$D)+SUMIF('Išlaidos pagal prekes'!$J:$J,\"=\"&($A16&TEXT(M$4,\"yy-mmm\")),'Išlaidos pagal prekes'!$E:$E)","v":{"v":0,"d":"0.00 Lt"}},{"$f":"SUMIF('Labdaros ir paramos išlaidos'!$L:$L,\"=\"&($A16&TEXT(N$4,\"yy-mmm\")),'Labdaros ir paramos išlaidos'!$D:$D)+SUMIF('Išlaidos pagal prekes'!$J:$J,\"=\"&($A16&TEXT(N$4,\"yy-mmm\")),'Išlaidos pagal prekes'!$E:$E)","v":{"v":0,"d":"0.00 Lt"}},{"$f":"SUM(C16:N16)","v":{"v":0,"d":"0.00 Lt"}}]
[]
[7000,"Kompiuteriai",{"$f":"SUMIF('Labdaros ir paramos išlaidos'!$L:$L,\"=\"&($A18&TEXT(C$4,\"yy-mmm\")),'Labdaros ir paramos išlaidos'!$D:$D)+SUMIF('Išlaidos pagal prekes'!$J:$J,\"=\"&($A18&TEXT(C$4,\"yy-mmm\")),'Išlaidos pagal prekes'!$E:$E)","v":{"v":2500,"d":"2,500.00 Lt"}},{"$f":"SUMIF('Labdaros ir paramos išlaidos'!$L:$L,\"=\"&($A18&TEXT(D$4,\"yy-mmm\")),'Labdaros ir paramos išlaidos'!$D:$D)+SUMIF('Išlaidos pagal prekes'!$J:$J,\"=\"&($A18&TEXT(D$4,\"yy-mmm\")),'Išlaidos pagal prekes'!$E:$E)","v":{"v":0,"d":"0.00 Lt"}},{"$f":"SUMIF('Labdaros ir paramos išlaidos'!$L:$L,\"=\"&($A18&TEXT(E$4,\"yy-mmm\")),'Labdaros ir paramos išlaidos'!$D:$D)+SUMIF('Išlaidos pagal prekes'!$J:$J,\"=\"&($A18&TEXT(E$4,\"yy-mmm\")),'Išlaidos pagal prekes'!$E:$E)","v":{"v":0,"d":"0.00 Lt"}},{"$f":"SUMIF('Labdaros ir paramos išlaidos'!$L:$L,\"=\"&($A18&TEXT(F$4,\"yy-mmm\")),'Labdaros ir paramos išlaidos'!$D:$D)+SUMIF('Išlaidos pagal prekes'!$J:$J,\"=\"&($A18&TEXT(F$4,\"yy-mmm\")),'Išlaidos pagal prekes'!$E:$E)","v":{"v":0,"d":"0.00 Lt"}},{"$f":"SUMIF('Labdaros ir paramos išlaidos'!$L:$L,\"=\"&($A18&TEXT(G$4,\"yy-mmm\")),'Labdaros ir paramos išlaidos'!$D:$D)+SUMIF('Išlaidos pagal prekes'!$J:$J,\"=\"&($A18&TEXT(G$4,\"yy-mmm\")),'Išlaidos pagal prekes'!$E:$E)","v":{"v":0,"d":"0.00 Lt"}},{"$f":"SUMIF('Labdaros ir paramos išlaidos'!$L:$L,\"=\"&($A18&TEXT(H$4,\"yy-mmm\")),'Labdaros ir paramos išlaidos'!$D:$D)+SUMIF('Išlaidos pagal prekes'!$J:$J,\"=\"&($A18&TEXT(H$4,\"yy-mmm\")),'Išlaidos pagal prekes'!$E:$E)","v":{"v":0,"d":"0.00 Lt"}},{"$f":"SUMIF('Labdaros ir paramos išlaidos'!$L:$L,\"=\"&($A18&TEXT(I$4,\"yy-mmm\")),'Labdaros ir paramos išlaidos'!$D:$D)+SUMIF('Išlaidos pagal prekes'!$J:$J,\"=\"&($A18&TEXT(I$4,\"yy-mmm\")),'Išlaidos pagal prekes'!$E:$E)","v":{"v":0,"d":"0.00 Lt"}},{"$f":"SUMIF('Labdaros ir paramos išlaidos'!$L:$L,\"=\"&($A18&TEXT(J$4,\"yy-mmm\")),'Labdaros ir paramos išlaidos'!$D:$D)+SUMIF('Išlaidos pagal prekes'!$J:$J,\"=\"&($A18&TEXT(J$4,\"yy-mmm\")),'Išlaidos pagal prekes'!$E:$E)","v":{"v":0,"d":"0.00 Lt"}},{"$f":"SUMIF('Labdaros ir paramos išlaidos'!$L:$L,\"=\"&($A18&TEXT(K$4,\"yy-mmm\")),'Labdaros ir paramos išlaidos'!$D:$D)+SUMIF('Išlaidos pagal prekes'!$J:$J,\"=\"&($A18&TEXT(K$4,\"yy-mmm\")),'Išlaidos pagal prekes'!$E:$E)","v":{"v":0,"d":"0.00 Lt"}},{"$f":"SUMIF('Labdaros ir paramos išlaidos'!$L:$L,\"=\"&($A18&TEXT(L$4,\"yy-mmm\")),'Labdaros ir paramos išlaidos'!$D:$D)+SUMIF('Išlaidos pagal prekes'!$J:$J,\"=\"&($A18&TEXT(L$4,\"yy-mmm\")),'Išlaidos pagal prekes'!$E:$E)","v":{"v":0,"d":"0.00 Lt"}},{"$f":"SUMIF('Labdaros ir paramos išlaidos'!$L:$L,\"=\"&($A18&TEXT(M$4,\"yy-mmm\")),'Labdaros ir paramos išlaidos'!$D:$D)+SUMIF('Išlaidos pagal prekes'!$J:$J,\"=\"&($A18&TEXT(M$4,\"yy-mmm\")),'Išlaidos pagal prekes'!$E:$E)","v":{"v":0,"d":"0.00 Lt"}},{"$f":"SUMIF('Labdaros ir paramos išlaidos'!$L:$L,\"=\"&($A18&TEXT(N$4,\"yy-mmm\")),'Labdaros ir paramos išlaidos'!$D:$D)+SUMIF('Išlaidos pagal prekes'!$J:$J,\"=\"&($A18&TEXT(N$4,\"yy-mmm\")),'Išlaidos pagal prekes'!$E:$E)","v":{"v":0,"d":"0.00 Lt"}},{"$f":"SUM(C18:N18)","v":{"v":2500,"d":"2,500.00 Lt"}}]
[]
[8000,"Medicinos planas",{"$f":"SUMIF('Labdaros ir paramos išlaidos'!$L:$L,\"=\"&($A20&TEXT(C$4,\"yy-mmm\")),'Labdaros ir paramos išlaidos'!$D:$D)+SUMIF('Išlaidos pagal prekes'!$J:$J,\"=\"&($A20&TEXT(C$4,\"yy-mmm\")),'Išlaidos pagal prekes'!$E:$E)","v":{"v":0,"d":"0.00 Lt"}},{"$f":"SUMIF('Labdaros ir paramos išlaidos'!$L:$L,\"=\"&($A20&TEXT(D$4,\"yy-mmm\")),'Labdaros ir paramos išlaidos'!$D:$D)+SUMIF('Išlaidos pagal prekes'!$J:$J,\"=\"&($A20&TEXT(D$4,\"yy-mmm\")),'Išlaidos pagal prekes'!$E:$E)","v":{"v":0,"d":"0.00 Lt"}},{"$f":"SUMIF('Labdaros ir paramos išlaidos'!$L:$L,\"=\"&($A20&TEXT(E$4,\"yy-mmm\")),'Labdaros ir paramos išlaidos'!$D:$D)+SUMIF('Išlaidos pagal prekes'!$J:$J,\"=\"&($A20&TEXT(E$4,\"yy-mmm\")),'Išlaidos pagal prekes'!$E:$E)","v":{"v":0,"d":"0.00 Lt"}},{"$f":"SUMIF('Labdaros ir paramos išlaidos'!$L:$L,\"=\"&($A20&TEXT(F$4,\"yy-mmm\")),'Labdaros ir paramos išlaidos'!$D:$D)+SUMIF('Išlaidos pagal prekes'!$J:$J,\"=\"&($A20&TEXT(F$4,\"yy-mmm\")),'Išlaidos pagal prekes'!$E:$E)","v":{"v":0,"d":"0.00 Lt"}},{"$f":"SUMIF('Labdaros ir paramos išlaidos'!$L:$L,\"=\"&($A20&TEXT(G$4,\"yy-mmm\")),'Labdaros ir paramos išlaidos'!$D:$D)+SUMIF('Išlaidos pagal prekes'!$J:$J,\"=\"&($A20&TEXT(G$4,\"yy-mmm\")),'Išlaidos pagal prekes'!$E:$E)","v":{"v":0,"d":"0.00 Lt"}},{"$f":"SUMIF('Labdaros ir paramos išlaidos'!$L:$L,\"=\"&($A20&TEXT(H$4,\"yy-mmm\")),'Labdaros ir paramos išlaidos'!$D:$D)+SUMIF('Išlaidos pagal prekes'!$J:$J,\"=\"&($A20&TEXT(H$4,\"yy-mmm\")),'Išlaidos pagal prekes'!$E:$E)","v":{"v":0,"d":"0.00 Lt"}},{"$f":"SUMIF('Labdaros ir paramos išlaidos'!$L:$L,\"=\"&($A20&TEXT(I$4,\"yy-mmm\")),'Labdaros ir paramos išlaidos'!$D:$D)+SUMIF('Išlaidos pagal prekes'!$J:$J,\"=\"&($A20&TEXT(I$4,\"yy-mmm\")),'Išlaidos pagal prekes'!$E:$E)","v":{"v":0,"d":"0.00 Lt"}},{"$f":"SUMIF('Labdaros ir paramos išlaidos'!$L:$L,\"=\"&($A20&TEXT(J$4,\"yy-mmm\")),'Labdaros ir paramos išlaidos'!$D:$D)+SUMIF('Išlaidos pagal prekes'!$J:$J,\"=\"&($A20&TEXT(J$4,\"yy-mmm\")),'Išlaidos pagal prekes'!$E:$E)","v":{"v":0,"d":"0.00 Lt"}},{"$f":"SUMIF('Labdaros ir paramos išlaidos'!$L:$L,\"=\"&($A20&TEXT(K$4,\"yy-mmm\")),'Labdaros ir paramos išlaidos'!$D:$D)+SUMIF('Išlaidos pagal prekes'!$J:$J,\"=\"&($A20&TEXT(K$4,\"yy-mmm\")),'Išlaidos pagal prekes'!$E:$E)","v":{"v":0,"d":"0.00 Lt"}},{"$f":"SUMIF('Labdaros ir paramos išlaidos'!$L:$L,\"=\"&($A20&TEXT(L$4,\"yy-mmm\")),'Labdaros ir paramos išlaidos'!$D:$D)+SUMIF('Išlaidos pagal prekes'!$J:$J,\"=\"&($A20&TEXT(L$4,\"yy-mmm\")),'Išlaidos pagal prekes'!$E:$E)","v":{"v":0,"d":"0.00 Lt"}},{"$f":"SUMIF('Labdaros ir paramos išlaidos'!$L:$L,\"=\"&($A20&TEXT(M$4,\"yy-mmm\")),'Labdaros ir paramos išlaidos'!$D:$D)+SUMIF('Išlaidos pagal prekes'!$J:$J,\"=\"&($A20&TEXT(M$4,\"yy-mmm\")),'Išlaidos pagal prekes'!$E:$E)","v":{"v":0,"d":"0.00 Lt"}},{"$f":"SUMIF('Labdaros ir paramos išlaidos'!$L:$L,\"=\"&($A20&TEXT(N$4,\"yy-mmm\")),'Labdaros ir paramos išlaidos'!$D:$D)+SUMIF('Išlaidos pagal prekes'!$J:$J,\"=\"&($A20&TEXT(N$4,\"yy-mmm\")),'Išlaidos pagal prekes'!$E:$E)","v":{"v":0,"d":"0.00 Lt"}},{"$f":"SUM(C20:N20)","v":{"v":0,"d":"0.00 Lt"}}]
[]
[9000,"Statybų išlaidos",{"$f":"SUMIF('Labdaros ir paramos išlaidos'!$L:$L,\"=\"&($A22&TEXT(C$4,\"yy-mmm\")),'Labdaros ir paramos išlaidos'!$D:$D)+SUMIF('Išlaidos pagal prekes'!$J:$J,\"=\"&($A22&TEXT(C$4,\"yy-mmm\")),'Išlaidos pagal prekes'!$E:$E)","v":{"v":0,"d":"0.00 Lt"}},{"$f":"SUMIF('Labdaros ir paramos išlaidos'!$L:$L,\"=\"&($A22&TEXT(D$4,\"yy-mmm\")),'Labdaros ir paramos išlaidos'!$D:$D)+SUMIF('Išlaidos pagal prekes'!$J:$J,\"=\"&($A22&TEXT(D$4,\"yy-mmm\")),'Išlaidos pagal prekes'!$E:$E)","v":{"v":0,"d":"0.00 Lt"}},{"$f":"SUMIF('Labdaros ir paramos išlaidos'!$L:$L,\"=\"&($A22&TEXT(E$4,\"yy-mmm\")),'Labdaros ir paramos išlaidos'!$D:$D)+SUMIF('Išlaidos pagal prekes'!$J:$J,\"=\"&($A22&TEXT(E$4,\"yy-mmm\")),'Išlaidos pagal prekes'!$E:$E)","v":{"v":0,"d":"0.00 Lt"}},{"$f":"SUMIF('Labdaros ir paramos išlaidos'!$L:$L,\"=\"&($A22&TEXT(F$4,\"yy-mmm\")),'Labdaros ir paramos išlaidos'!$D:$D)+SUMIF('Išlaidos pagal prekes'!$J:$J,\"=\"&($A22&TEXT(F$4,\"yy-mmm\")),'Išlaidos pagal prekes'!$E:$E)","v":{"v":0,"d":"0.00 Lt"}},{"$f":"SUMIF('Labdaros ir paramos išlaidos'!$L:$L,\"=\"&($A22&TEXT(G$4,\"yy-mmm\")),'Labdaros ir paramos išlaidos'!$D:$D)+SUMIF('Išlaidos pagal prekes'!$J:$J,\"=\"&($A22&TEXT(G$4,\"yy-mmm\")),'Išlaidos pagal prekes'!$E:$E)","v":{"v":0,"d":"0.00 Lt"}},{"$f":"SUMIF('Labdaros ir paramos išlaidos'!$L:$L,\"=\"&($A22&TEXT(H$4,\"yy-mmm\")),'Labdaros ir paramos išlaidos'!$D:$D)+SUMIF('Išlaidos pagal prekes'!$J:$J,\"=\"&($A22&TEXT(H$4,\"yy-mmm\")),'Išlaidos pagal prekes'!$E:$E)","v":{"v":0,"d":"0.00 Lt"}},{"$f":"SUMIF('Labdaros ir paramos išlaidos'!$L:$L,\"=\"&($A22&TEXT(I$4,\"yy-mmm\")),'Labdaros ir paramos išlaidos'!$D:$D)+SUMIF('Išlaidos pagal prekes'!$J:$J,\"=\"&($A22&TEXT(I$4,\"yy-mmm\")),'Išlaidos pagal prekes'!$E:$E)","v":{"v":0,"d":"0.00 Lt"}},{"$f":"SUMIF('Labdaros ir paramos išlaidos'!$L:$L,\"=\"&($A22&TEXT(J$4,\"yy-mmm\")),'Labdaros ir paramos išlaidos'!$D:$D)+SUMIF('Išlaidos pagal prekes'!$J:$J,\"=\"&($A22&TEXT(J$4,\"yy-mmm\")),'Išlaidos pagal prekes'!$E:$E)","v":{"v":0,"d":"0.00 Lt"}},{"$f":"SUMIF('Labdaros ir paramos išlaidos'!$L:$L,\"=\"&($A22&TEXT(K$4,\"yy-mmm\")),'Labdaros ir paramos išlaidos'!$D:$D)+SUMIF('Išlaidos pagal prekes'!$J:$J,\"=\"&($A22&TEXT(K$4,\"yy-mmm\")),'Išlaidos pagal prekes'!$E:$E)","v":{"v":0,"d":"0.00 Lt"}},{"$f":"SUMIF('Labdaros ir paramos išlaidos'!$L:$L,\"=\"&($A22&TEXT(L$4,\"yy-mmm\")),'Labdaros ir paramos išlaidos'!$D:$D)+SUMIF('Išlaidos pagal prekes'!$J:$J,\"=\"&($A22&TEXT(L$4,\"yy-mmm\")),'Išlaidos pagal prekes'!$E:$E)","v":{"v":0,"d":"0.00 Lt"}},{"$f":"SUMIF('Labdaros ir paramos išlaidos'!$L:$L,\"=\"&($A22&TEXT(M$4,\"yy-mmm\")),'Labdaros ir paramos išlaidos'!$D:$D)+SUMIF('Išlaidos pagal prekes'!$J:$J,\"=\"&($A22&TEXT(M$4,\"yy-mmm\")),'Išlaidos pagal prekes'!$E:$E)","v":{"v":0,"d":"0.00 Lt"}},{"$f":"SUMIF('Labdaros ir paramos išlaidos'!$L:$L,\"=\"&($A22&TEXT(N$4,\"yy-mmm\")),'Labdaros ir paramos išlaidos'!$D:$D)+SUMIF('Išlaidos pagal prekes'!$J:$J,\"=\"&($A22&TEXT(N$4,\"yy-mmm\")),'Išlaidos pagal prekes'!$E:$E)","v":{"v":0,"d":"0.00 Lt"}},{"$f":"SUM(C22:N22)","v":{"v":0,"d":"0.00 Lt"}}]
[]
[10000,"Prekyba",{"$f":"SUMIF('Labdaros ir paramos išlaidos'!$L:$L,\"=\"&($A24&TEXT(C$4,\"yy-mmm\")),'Labdaros ir paramos išlaidos'!$D:$D)+SUMIF('Išlaidos pagal prekes'!$J:$J,\"=\"&($A24&TEXT(C$4,\"yy-mmm\")),'Išlaidos pagal prekes'!$E:$E)","v":{"v":0,"d":"0.00 Lt"}},{"$f":"SUMIF('Labdaros ir paramos išlaidos'!$L:$L,\"=\"&($A24&TEXT(D$4,\"yy-mmm\")),'Labdaros ir paramos išlaidos'!$D:$D)+SUMIF('Išlaidos pagal prekes'!$J:$J,\"=\"&($A24&TEXT(D$4,\"yy-mmm\")),'Išlaidos pagal prekes'!$E:$E)","v":{"v":0,"d":"0.00 Lt"}},{"$f":"SUMIF('Labdaros ir paramos išlaidos'!$L:$L,\"=\"&($A24&TEXT(E$4,\"yy-mmm\")),'Labdaros ir paramos išlaidos'!$D:$D)+SUMIF('Išlaidos pagal prekes'!$J:$J,\"=\"&($A24&TEXT(E$4,\"yy-mmm\")),'Išlaidos pagal prekes'!$E:$E)","v":{"v":0,"d":"0.00 Lt"}},{"$f":"SUMIF('Labdaros ir paramos išlaidos'!$L:$L,\"=\"&($A24&TEXT(F$4,\"yy-mmm\")),'Labdaros ir paramos išlaidos'!$D:$D)+SUMIF('Išlaidos pagal prekes'!$J:$J,\"=\"&($A24&TEXT(F$4,\"yy-mmm\")),'Išlaidos pagal prekes'!$E:$E)","v":{"v":0,"d":"0.00 Lt"}},{"$f":"SUMIF('Labdaros ir paramos išlaidos'!$L:$L,\"=\"&($A24&TEXT(G$4,\"yy-mmm\")),'Labdaros ir paramos išlaidos'!$D:$D)+SUMIF('Išlaidos pagal prekes'!$J:$J,\"=\"&($A24&TEXT(G$4,\"yy-mmm\")),'Išlaidos pagal prekes'!$E:$E)","v":{"v":0,"d":"0.00 Lt"}},{"$f":"SUMIF('Labdaros ir paramos išlaidos'!$L:$L,\"=\"&($A24&TEXT(H$4,\"yy-mmm\")),'Labdaros ir paramos išlaidos'!$D:$D)+SUMIF('Išlaidos pagal prekes'!$J:$J,\"=\"&($A24&TEXT(H$4,\"yy-mmm\")),'Išlaidos pagal prekes'!$E:$E)","v":{"v":0,"d":"0.00 Lt"}},{"$f":"SUMIF('Labdaros ir paramos išlaidos'!$L:$L,\"=\"&($A24&TEXT(I$4,\"yy-mmm\")),'Labdaros ir paramos išlaidos'!$D:$D)+SUMIF('Išlaidos pagal prekes'!$J:$J,\"=\"&($A24&TEXT(I$4,\"yy-mmm\")),'Išlaidos pagal prekes'!$E:$E)","v":{"v":0,"d":"0.00 Lt"}},{"$f":"SUMIF('Labdaros ir paramos išlaidos'!$L:$L,\"=\"&($A24&TEXT(J$4,\"yy-mmm\")),'Labdaros ir paramos išlaidos'!$D:$D)+SUMIF('Išlaidos pagal prekes'!$J:$J,\"=\"&($A24&TEXT(J$4,\"yy-mmm\")),'Išlaidos pagal prekes'!$E:$E)","v":{"v":0,"d":"0.00 Lt"}},{"$f":"SUMIF('Labdaros ir paramos išlaidos'!$L:$L,\"=\"&($A24&TEXT(K$4,\"yy-mmm\")),'Labdaros ir paramos išlaidos'!$D:$D)+SUMIF('Išlaidos pagal prekes'!$J:$J,\"=\"&($A24&TEXT(K$4,\"yy-mmm\")),'Išlaidos pagal prekes'!$E:$E)","v":{"v":0,"d":"0.00 Lt"}},{"$f":"SUMIF('Labdaros ir paramos išlaidos'!$L:$L,\"=\"&($A24&TEXT(L$4,\"yy-mmm\")),'Labdaros ir paramos išlaidos'!$D:$D)+SUMIF('Išlaidos pagal prekes'!$J:$J,\"=\"&($A24&TEXT(L$4,\"yy-mmm\")),'Išlaidos pagal prekes'!$E:$E)","v":{"v":0,"d":"0.00 Lt"}},{"$f":"SUMIF('Labdaros ir paramos išlaidos'!$L:$L,\"=\"&($A24&TEXT(M$4,\"yy-mmm\")),'Labdaros ir paramos išlaidos'!$D:$D)+SUMIF('Išlaidos pagal prekes'!$J:$J,\"=\"&($A24&TEXT(M$4,\"yy-mmm\")),'Išlaidos pagal prekes'!$E:$E)","v":{"v":0,"d":"0.00 Lt"}},{"$f":"SUMIF('Labdaros ir paramos išlaidos'!$L:$L,\"=\"&($A24&TEXT(N$4,\"yy-mmm\")),'Labdaros ir paramos išlaidos'!$D:$D)+SUMIF('Išlaidos pagal prekes'!$J:$J,\"=\"&($A24&TEXT(N$4,\"yy-mmm\")),'Išlaidos pagal prekes'!$E:$E)","v":{"v":0,"d":"0.00 Lt"}},{"$f":"SUM(C24:N24)","v":{"v":0,"d":"0.00 Lt"}}]
[]
[11000,"Labdaros išlaidos",{"$f":"SUMIF('Labdaros ir paramos išlaidos'!$L:$L,\"=\"&($A26&TEXT(C$4,\"yy-mmm\")),'Labdaros ir paramos išlaidos'!$D:$D)+SUMIF('Išlaidos pagal prekes'!$J:$J,\"=\"&($A26&TEXT(C$4,\"yy-mmm\")),'Išlaidos pagal prekes'!$E:$E)","v":{"v":0,"d":"0.00 Lt"}},{"$f":"SUMIF('Labdaros ir paramos išlaidos'!$L:$L,\"=\"&($A26&TEXT(D$4,\"yy-mmm\")),'Labdaros ir paramos išlaidos'!$D:$D)+SUMIF('Išlaidos pagal prekes'!$J:$J,\"=\"&($A26&TEXT(D$4,\"yy-mmm\")),'Išlaidos pagal prekes'!$E:$E)","v":{"v":2500,"d":"2,500.00 Lt"}},{"$f":"SUMIF('Labdaros ir paramos išlaidos'!$L:$L,\"=\"&($A26&TEXT(E$4,\"yy-mmm\")),'Labdaros ir paramos išlaidos'!$D:$D)+SUMIF('Išlaidos pagal prekes'!$J:$J,\"=\"&($A26&TEXT(E$4,\"yy-mmm\")),'Išlaidos pagal prekes'!$E:$E)","v":{"v":0,"d":"0.00 Lt"}},{"$f":"SUMIF('Labdaros ir paramos išlaidos'!$L:$L,\"=\"&($A26&TEXT(F$4,\"yy-mmm\")),'Labdaros ir paramos išlaidos'!$D:$D)+SUMIF('Išlaidos pagal prekes'!$J:$J,\"=\"&($A26&TEXT(F$4,\"yy-mmm\")),'Išlaidos pagal prekes'!$E:$E)","v":{"v":0,"d":"0.00 Lt"}},{"$f":"SUMIF('Labdaros ir paramos išlaidos'!$L:$L,\"=\"&($A26&TEXT(G$4,\"yy-mmm\")),'Labdaros ir paramos išlaidos'!$D:$D)+SUMIF('Išlaidos pagal prekes'!$J:$J,\"=\"&($A26&TEXT(G$4,\"yy-mmm\")),'Išlaidos pagal prekes'!$E:$E)","v":{"v":0,"d":"0.00 Lt"}},{"$f":"SUMIF('Labdaros ir paramos išlaidos'!$L:$L,\"=\"&($A26&TEXT(H$4,\"yy-mmm\")),'Labdaros ir paramos išlaidos'!$D:$D)+SUMIF('Išlaidos pagal prekes'!$J:$J,\"=\"&($A26&TEXT(H$4,\"yy-mmm\")),'Išlaidos pagal prekes'!$E:$E)","v":{"v":0,"d":"0.00 Lt"}},{"$f":"SUMIF('Labdaros ir paramos išlaidos'!$L:$L,\"=\"&($A26&TEXT(I$4,\"yy-mmm\")),'Labdaros ir paramos išlaidos'!$D:$D)+SUMIF('Išlaidos pagal prekes'!$J:$J,\"=\"&($A26&TEXT(I$4,\"yy-mmm\")),'Išlaidos pagal prekes'!$E:$E)","v":{"v":0,"d":"0.00 Lt"}},{"$f":"SUMIF('Labdaros ir paramos išlaidos'!$L:$L,\"=\"&($A26&TEXT(J$4,\"yy-mmm\")),'Labdaros ir paramos išlaidos'!$D:$D)+SUMIF('Išlaidos pagal prekes'!$J:$J,\"=\"&($A26&TEXT(J$4,\"yy-mmm\")),'Išlaidos pagal prekes'!$E:$E)","v":{"v":0,"d":"0.00 Lt"}},{"$f":"SUMIF('Labdaros ir paramos išlaidos'!$L:$L,\"=\"&($A26&TEXT(K$4,\"yy-mmm\")),'Labdaros ir paramos išlaidos'!$D:$D)+SUMIF('Išlaidos pagal prekes'!$J:$J,\"=\"&($A26&TEXT(K$4,\"yy-mmm\")),'Išlaidos pagal prekes'!$E:$E)","v":{"v":0,"d":"0.00 Lt"}},{"$f":"SUMIF('Labdaros ir paramos išlaidos'!$L:$L,\"=\"&($A26&TEXT(L$4,\"yy-mmm\")),'Labdaros ir paramos išlaidos'!$D:$D)+SUMIF('Išlaidos pagal prekes'!$J:$J,\"=\"&($A26&TEXT(L$4,\"yy-mmm\")),'Išlaidos pagal prekes'!$E:$E)","v":{"v":0,"d":"0.00 Lt"}},{"$f":"SUMIF('Labdaros ir paramos išlaidos'!$L:$L,\"=\"&($A26&TEXT(M$4,\"yy-mmm\")),'Labdaros ir paramos išlaidos'!$D:$D)+SUMIF('Išlaidos pagal prekes'!$J:$J,\"=\"&($A26&TEXT(M$4,\"yy-mmm\")),'Išlaidos pagal prekes'!$E:$E)","v":{"v":0,"d":"0.00 Lt"}},{"$f":"SUMIF('Labdaros ir paramos išlaidos'!$L:$L,\"=\"&($A26&TEXT(N$4,\"yy-mmm\")),'Labdaros ir paramos išlaidos'!$D:$D)+SUMIF('Išlaidos pagal prekes'!$J:$J,\"=\"&($A26&TEXT(N$4,\"yy-mmm\")),'Išlaidos pagal prekes'!$E:$E)","v":{"v":0,"d":"0.00 Lt"}},{"$f":"SUM(C26:N26)","v":{"v":2500,"d":"2,500.00 Lt"}}]
[]
[12000,"Rėmimo išlaidos",{"$f":"SUMIF('Labdaros ir paramos išlaidos'!$L:$L,\"=\"&($A28&TEXT(C$4,\"yy-mmm\")),'Labdaros ir paramos išlaidos'!$D:$D)+SUMIF('Išlaidos pagal prekes'!$J:$J,\"=\"&($A28&TEXT(C$4,\"yy-mmm\")),'Išlaidos pagal prekes'!$E:$E)","v":{"v":1000,"d":"1,000.00 Lt"}},{"$f":"SUMIF('Labdaros ir paramos išlaidos'!$L:$L,\"=\"&($A28&TEXT(D$4,\"yy-mmm\")),'Labdaros ir paramos išlaidos'!$D:$D)+SUMIF('Išlaidos pagal prekes'!$J:$J,\"=\"&($A28&TEXT(D$4,\"yy-mmm\")),'Išlaidos pagal prekes'!$E:$E)","v":{"v":0,"d":"0.00 Lt"}},{"$f":"SUMIF('Labdaros ir paramos išlaidos'!$L:$L,\"=\"&($A28&TEXT(E$4,\"yy-mmm\")),'Labdaros ir paramos išlaidos'!$D:$D)+SUMIF('Išlaidos pagal prekes'!$J:$J,\"=\"&($A28&TEXT(E$4,\"yy-mmm\")),'Išlaidos pagal prekes'!$E:$E)","v":{"v":0,"d":"0.00 Lt"}},{"$f":"SUMIF('Labdaros ir paramos išlaidos'!$L:$L,\"=\"&($A28&TEXT(F$4,\"yy-mmm\")),'Labdaros ir paramos išlaidos'!$D:$D)+SUMIF('Išlaidos pagal prekes'!$J:$J,\"=\"&($A28&TEXT(F$4,\"yy-mmm\")),'Išlaidos pagal prekes'!$E:$E)","v":{"v":0,"d":"0.00 Lt"}},{"$f":"SUMIF('Labdaros ir paramos išlaidos'!$L:$L,\"=\"&($A28&TEXT(G$4,\"yy-mmm\")),'Labdaros ir paramos išlaidos'!$D:$D)+SUMIF('Išlaidos pagal prekes'!$J:$J,\"=\"&($A28&TEXT(G$4,\"yy-mmm\")),'Išlaidos pagal prekes'!$E:$E)","v":{"v":0,"d":"0.00 Lt"}},{"$f":"SUMIF('Labdaros ir paramos išlaidos'!$L:$L,\"=\"&($A28&TEXT(H$4,\"yy-mmm\")),'Labdaros ir paramos išlaidos'!$D:$D)+SUMIF('Išlaidos pagal prekes'!$J:$J,\"=\"&($A28&TEXT(H$4,\"yy-mmm\")),'Išlaidos pagal prekes'!$E:$E)","v":{"v":0,"d":"0.00 Lt"}},{"$f":"SUMIF('Labdaros ir paramos išlaidos'!$L:$L,\"=\"&($A28&TEXT(I$4,\"yy-mmm\")),'Labdaros ir paramos išlaidos'!$D:$D)+SUMIF('Išlaidos pagal prekes'!$J:$J,\"=\"&($A28&TEXT(I$4,\"yy-mmm\")),'Išlaidos pagal prekes'!$E:$E)","v":{"v":0,"d":"0.00 Lt"}},{"$f":"SUMIF('Labdaros ir paramos išlaidos'!$L:$L,\"=\"&($A28&TEXT(J$4,\"yy-mmm\")),'Labdaros ir paramos išlaidos'!$D:$D)+SUMIF('Išlaidos pagal prekes'!$J:$J,\"=\"&($A28&TEXT(J$4,\"yy-mmm\")),'Išlaidos pagal prekes'!$E:$E)","v":{"v":0,"d":"0.00 Lt"}},{"$f":"SUMIF('Labdaros ir paramos išlaidos'!$L:$L,\"=\"&($A28&TEXT(K$4,\"yy-mmm\")),'Labdaros ir paramos išlaidos'!$D:$D)+SUMIF('Išlaidos pagal prekes'!$J:$J,\"=\"&($A28&TEXT(K$4,\"yy-mmm\")),'Išlaidos pagal prekes'!$E:$E)","v":{"v":0,"d":"0.00 Lt"}},{"$f":"SUMIF('Labdaros ir paramos išlaidos'!$L:$L,\"=\"&($A28&TEXT(L$4,\"yy-mmm\")),'Labdaros ir paramos išlaidos'!$D:$D)+SUMIF('Išlaidos pagal prekes'!$J:$J,\"=\"&($A28&TEXT(L$4,\"yy-mmm\")),'Išlaidos pagal prekes'!$E:$E)","v":{"v":0,"d":"0.00 Lt"}},{"$f":"SUMIF('Labdaros ir paramos išlaidos'!$L:$L,\"=\"&($A28&TEXT(M$4,\"yy-mmm\")),'Labdaros ir paramos išlaidos'!$D:$D)+SUMIF('Išlaidos pagal prekes'!$J:$J,\"=\"&($A28&TEXT(M$4,\"yy-mmm\")),'Išlaidos pagal prekes'!$E:$E)","v":{"v":0,"d":"0.00 Lt"}},{"$f":"SUMIF('Labdaros ir paramos išlaidos'!$L:$L,\"=\"&($A28&TEXT(N$4,\"yy-mmm\")),'Labdaros ir paramos išlaidos'!$D:$D)+SUMIF('Išlaidos pagal prekes'!$J:$J,\"=\"&($A28&TEXT(N$4,\"yy-mmm\")),'Išlaidos pagal prekes'!$E:$E)","v":{"v":0,"d":"0.00 Lt"}},{"$f":"SUM(C28:N28)","v":{"v":1000,"d":"1,000.00 Lt"}}]
[]
[null,"Iš viso",{"$f":"SUM(C6:C28)","v":{"v":78575,"d":"78,575.00 Lt"}},{"v":2500,"d":"2,500.00 Lt"},{"v":0,"d":"0.00 Lt"},{"v":0,"d":"0.00 Lt"},{"v":0,"d":"0.00 Lt"},{"v":0,"d":"0.00 Lt"},{"v":0,"d":"0.00 Lt"},{"v":0,"d":"0.00 Lt"},{"v":0,"d":"0.00 Lt"},{"v":0,"d":"0.00 Lt"},{"v":0,"d":"0.00 Lt"},{"v":0,"d":"0.00 Lt"},{"v":81075,"d":"81,075.00 Lt"}]

{"sheet":"Išlaidos pagal prekes","index":2,"n_rows":103,"n_cols":10,"rows_kept":103}
["Didžiosios knygos kodas","Sąskaitos data","Sąskaitos nr.","Pareikalavo"," Čekio suma ","Mokėtojas","Čekio naudojimo tikslas","Paskirstymo būdas","Bylos data","Sukurtas rakto laukas"]
[1000,"2005-01-01",100,"Andy Teal",{"v":75075,"d":"75,075.00 Lt"},"Bendras kurjeris ","Paštininkas","Laiškas","2005-01-04",{"$f":"A2&TEXT(B2,\"yy-mmm\")","v":"100005-Jan"}]
[7000,"2005-01-15",101,"Robert Walters",{"v":2500,"d":"2,500.00 Lt"},"Įmonė A. Datum ","2 staliniai kompiuteriai","Kreditas","2005-01-20","700005-Jan"]
[{"$nulls":9},"00-Jan"]
[{"$nulls":9},"00-Jan"]
[{"$nulls":9},"00-Jan"]
[{"$nulls":9},"00-Jan"]
[{"$nulls":9},"00-Jan"]
[{"$nulls":9},"00-Jan"]
[{"$nulls":9},"00-Jan"]
[{"$nulls":9},"00-Jan"]
[{"$nulls":9},"00-Jan"]
[{"$nulls":9},"00-Jan"]
[{"$nulls":9},"00-Jan"]
[{"$nulls":9},"00-Jan"]
[{"$nulls":9},"00-Jan"]
[{"$nulls":9},"00-Jan"]
[{"$nulls":9},"00-Jan"]
[{"$nulls":9},"00-Jan"]
[{"$nulls":9},"00-Jan"]
[{"$nulls":9},"00-Jan"]
[{"$nulls":9},"00-Jan"]
[{"$nulls":9},"00-Jan"]
[{"$nulls":9},"00-Jan"]
[{"$nulls":9},"00-Jan"]
[{"$nulls":9},"00-Jan"]
[{"$nulls":9},"00-Jan"]
[{"$nulls":9},"00-Jan"]
[{"$nulls":9},"00-Jan"]
[{"$nulls":9},"00-Jan"]
[{"$nulls":9},"00-Jan"]
[{"$nulls":9},"00-Jan"]
[{"$nulls":9},"00-Jan"]
[{"$nulls":9},{"$f":"A34&TEXT(B34,\"yy-mmm\")","v":"00-Jan"}]
[{"$nulls":9},"00-Jan"]
[{"$nulls":9},"00-Jan"]
[{"$nulls":9},"00-Jan"]
[{"$nulls":9},"00-Jan"]
[{"$nulls":9},"00-Jan"]
[{"$nulls":9},"00-Jan"]
[{"$nulls":9},"00-Jan"]
[{"$nulls":9},"00-Jan"]
[{"$nulls":9},"00-Jan"]
[{"$nulls":9},"00-Jan"]
[{"$nulls":9},"00-Jan"]
[{"$nulls":9},"00-Jan"]
[{"$nulls":9},"00-Jan"]
[{"$nulls":9},"00-Jan"]
[{"$nulls":9},"00-Jan"]
[{"$nulls":9},"00-Jan"]
[{"$nulls":9},"00-Jan"]
[{"$nulls":9},"00-Jan"]
[{"$nulls":9},"00-Jan"]
[{"$nulls":9},"00-Jan"]
[{"$nulls":9},"00-Jan"]
[{"$nulls":9},"00-Jan"]
[{"$nulls":9},"00-Jan"]
[{"$nulls":9},"00-Jan"]
[{"$nulls":9},"00-Jan"]
[{"$nulls":9},"00-Jan"]
[{"$nulls":9},"00-Jan"]
[{"$nulls":9},"00-Jan"]
[{"$nulls":9},"00-Jan"]
[{"$nulls":9},"00-Jan"]
[{"$nulls":9},"00-Jan"]
[{"$nulls":9},{"$f":"A66&TEXT(B66,\"yy-mmm\")","v":"00-Jan"}]
[{"$nulls":9},"00-Jan"]
[{"$nulls":9},"00-Jan"]
[{"$nulls":9},"00-Jan"]
[{"$nulls":9},"00-Jan"]
[{"$nulls":9},"00-Jan"]
[{"$nulls":9},"00-Jan"]
[{"$nulls":9},"00-Jan"]
[{"$nulls":9},"00-Jan"]
[{"$nulls":9},"00-Jan"]
[{"$nulls":9},"00-Jan"]
[{"$nulls":9},"00-Jan"]
[{"$nulls":9},"00-Jan"]
[{"$nulls":9},"00-Jan"]
[{"$nulls":9},"00-Jan"]
[{"$nulls":9},"00-Jan"]
[{"$nulls":9},"00-Jan"]
[{"$nulls":9},"00-Jan"]
[{"$nulls":9},"00-Jan"]
[{"$nulls":9},"00-Jan"]
[{"$nulls":9},"00-Jan"]
[{"$nulls":9},"00-Jan"]
[{"$nulls":9},"00-Jan"]
[{"$nulls":9},"00-Jan"]
[{"$nulls":9},"00-Jan"]
[{"$nulls":9},"00-Jan"]
[{"$nulls":9},"00-Jan"]
[{"$nulls":9},"00-Jan"]
[{"$nulls":9},"00-Jan"]
[{"$nulls":9},"00-Jan"]
[{"$nulls":9},"00-Jan"]
[{"$nulls":9},"00-Jan"]
[{"$nulls":9},{"$f":"A98&TEXT(B98,\"yy-mmm\")","v":"00-Jan"}]
[{"$nulls":9},"00-Jan"]
[{"$nulls":9},"00-Jan"]
[{"$nulls":9},"00-Jan"]
[{"$nulls":9},"00-Jan"]
[{"$nulls":9},"00-Jan"]

{"sheet":"Labdaros ir paramos išlaidos","index":3,"n_rows":109,"n_cols":12,"rows_kept":109}
["Didžiosios knygos kodas","Pateikta \ntikrinimo paraiška","Pareikalavo"," Čekio suma "," Praeitų metų įnašas ","Mokėtojas","Kam naudojama","Kas užbaigė","Kategorija","Paskirstymo būdas","Bylos data","Sukurtas rakto laukas"]
[12000,"2005-01-20","Susan W. Eaton",{"v":1000,"d":"1,000.00 Lt"},{"v":0,"d":"0.00 Lt"},"Dailės Mokykla ","Stipendijos","Kim Ralls","Meno rūšys","Čekis","2005-01-30",{"$f":"A2&TEXT(B2,\"yy-mmm\")","v":"1200005-Jan"}]
[11000,"2005-02-15","Susan W. Eaton",{"v":2500,"d":"2,500.00 Lt"},{"v":0,"d":"0.00 Lt"},"Wingtip Toys ","Bendruomenė","Kathie Flood","Bendruomenė","Čekis","2005-03-01","1100005-Feb"]
[{"$nulls":11},"00-Jan"]
[{"$nulls":11},"00-Jan"]
[{"$nulls":11},"00-Jan"]
[{"$nulls":11},"00-Jan"]
[{"$nulls":11},"00-Jan"]
[{"$nulls":11},"00-Jan"]
[{"$nulls":11},"00-Jan"]
[{"$nulls":11},"00-Jan"]
[{"$nulls":11},"00-Jan"]
[{"$nulls":11},"00-Jan"]
[{"$nulls":11},"00-Jan"]
[{"$nulls":11},"00-Jan"]
[{"$nulls":11},"00-Jan"]
[{"$nulls":11},"00-Jan"]
[{"$nulls":11},"00-Jan"]
[{"$nulls":11},"00-Jan"]
[{"$nulls":11},"00-Jan"]
[{"$nulls":11},"00-Jan"]
[{"$nulls":11},"00-Jan"]
[{"$nulls":11},"00-Jan"]
[{"$nulls":11},"00-Jan"]
[{"$nulls":11},"00-Jan"]
[{"$nulls":11},"00-Jan"]
[{"$nulls":11},"00-Jan"]
[{"$nulls":11},"00-Jan"]
[{"$nulls":11},"00-Jan"]
[{"$nulls":11},"00-Jan"]
[{"$nulls":11},"00-Jan"]
[{"$nulls":11},"00-Jan"]
[{"$nulls":11},"00-Jan"]
[{"$nulls":11},{"$f":"A34&TEXT(B34,\"yy-mmm\")","v":"00-Jan"}]
[{"$nulls":11},"00-Jan"]
[{"$nulls":11},"00-Jan"]
[{"$nulls":11},"00-Jan"]
[{"$nulls":11},"00-Jan"]
[{"$nulls":11},"00-Jan"]
[{"$nulls":11},"00-Jan"]
[{"$nulls":11},"00-Jan"]
[{"$nulls":11},"00-Jan"]
[{"$nulls":11},"00-Jan"]
[{"$nulls":11},"00-Jan"]
[{"$nulls":11},"00-Jan"]
[{"$nulls":11},"00-Jan"]
[{"$nulls":11},"00-Jan"]
[{"$nulls":11},"00-Jan"]
[{"$nulls":11},"00-Jan"]
[{"$nulls":11},"00-Jan"]
[{"$nulls":11},"00-Jan"]
[{"$nulls":11},"00-Jan"]
[{"$nulls":11},"00-Jan"]
[{"$nulls":11},"00-Jan"]
[{"$nulls":11},"00-Jan"]
[{"$nulls":11},"00-Jan"]
[{"$nulls":11},"00-Jan"]
[{"$nulls":11},"00-Jan"]
[{"$nulls":11},"00-Jan"]
[{"$nulls":11},"00-Jan"]
[{"$nulls":11},"00-Jan"]
[{"$nulls":11},"00-Jan"]
[{"$nulls":11},"00-Jan"]
[{"$nulls":11},"00-Jan"]
[{"$nulls":11},"00-Jan"]
[{"$nulls":11},{"$f":"A66&TEXT(B66,\"yy-mmm\")","v":"00-Jan"}]
[{"$nulls":11},"00-Jan"]
[{"$nulls":11},"00-Jan"]
[{"$nulls":11},"00-Jan"]
[{"$nulls":11},"00-Jan"]
[{"$nulls":11},"00-Jan"]
[{"$nulls":11},"00-Jan"]
[{"$nulls":11},"00-Jan"]
[{"$nulls":11},"00-Jan"]
[{"$nulls":11},"00-Jan"]
[{"$nulls":11},"00-Jan"]
[{"$nulls":11},"00-Jan"]
[{"$nulls":11},"00-Jan"]
[{"$nulls":11},"00-Jan"]
[{"$nulls":11},"00-Jan"]
[{"$nulls":11},"00-Jan"]
[{"$nulls":11},"00-Jan"]
[{"$nulls":11},"00-Jan"]
[{"$nulls":11},"00-Jan"]
[{"$nulls":11},"00-Jan"]
[{"$nulls":11},"00-Jan"]
[{"$nulls":11},"00-Jan"]
[{"$nulls":11},"00-Jan"]
[{"$nulls":11},"00-Jan"]
[{"$nulls":11},"00-Jan"]
[{"$nulls":11},"00-Jan"]
[{"$nulls":11},"00-Jan"]
[{"$nulls":11},"00-Jan"]
[{"$nulls":11},"00-Jan"]
[{"$nulls":11},"00-Jan"]
[{"$nulls":11},"00-Jan"]
[{"$nulls":11},"00-Jan"]
[{"$nulls":11},{"$f":"A98&TEXT(B98,\"yy-mmm\")","v":"00-Jan"}]
[{"$nulls":11},"00-Jan"]
[{"$nulls":11},"00-Jan"]
[{"$nulls":11},"00-Jan"]
[{"$nulls":11},"00-Jan"]
[{"$nulls":11},"00-Jan"]
[{"$nulls":11},"00-Jan"]
[{"$nulls":11},"00-Jan"]
[{"$nulls":11},"00-Jan"]
[{"$nulls":11},"00-Jan"]
[{"$nulls":11},"00-Jan"]
[{"$nulls":11},"00-Jan"]